Cogmind - Beta 13 @@@ ROGUE MODE // 2024.06.26 @ 02:57:24 Player: doughoff Result: Self-destructed Performance ------------- Evolutions (2) 1000 Regions Visited (5) 1000 Robots Destroyed (50) 250 Value Destroyed (1109) 1109 Prototype IDs (24) 480 Alien Tech Used (0) 0 Bonus (348) 348 TOTAL SCORE: 4187 Bonus ------- High Alert Combat Kills 48 Aligned with FarCom 300 Cogmind --------- Core Integrity 454/550 Matter 300/300 Energy 160/160 System Corruption 0% Temperature Cool (0) Movement Treading (160) Location -8/Materials Parts ------- > --- POWER (1) -------- Light Nuclear Core > --- PROPULSION (4) --- Light Treads Light Treads Light Treads Light Treads > --- UTILITY (4) ------ Improved Heat Sink Medium Storage Unit Light Armor Plating > --- WEAPON (2) ------- Longsword +1 > --- INVENTORY (10) --- Light Nuclear Core Light Treads Wheel Improved Light Armor Plating EM Pulse Cannon Heavy Particle Cannon Light Assault Rifle Light Assault Rifle Light Assault Rifle Heavy Assault Rifle Peak State ------------ > --- POWER ------------ Light Nuclear Core > --- PROPULSION ------- Light Treads Light Treads Light Treads Aerolev Unit > --- UTILITY ---------- Improved Heat Sink Medium Storage Unit Light Armor Plating Improved Light Armor Plating > --- WEAPON ----------- Light Assault Rifle Longsword +1 > --- INVENTORY -------- Light Nuclear Core Light Nuclear Core Light Treads Improved Treads Wheel EM Pulse Cannon Heavy Particle Cannon Light Assault Rifle Light Assault Rifle Light Assault Rifle [Rating: 28] Favorites ----------- Power Light Nuclear Core Engine Light Ion Engine Power Core Light Nuclear Core Propulsion Light Treads Treads Light Treads Leg Aluminum Leg Hover Unit Aerolev Unit Utility Improved Heat Sink Device Improved Heat Sink Storage Small Storage Unit Protection Improved Light Armor Plating Weapon Light Assault Rifle Energy Gun Medium Laser Energy Cannon EM Pulse Cannon Ballistic Gun Light Assault Rifle Slashing Weapon Longsword +1 Build | -11 -10 -10 -10 -9 -8 ------- Run | Yrd Mat Min Exi Min Mat Slots Evolved 4 | . . . . . 4 Power . | . . . . . . Propulsion 2 | . . . . . 2 Utility 2 | . . . . . 2 Weapon . | . . . . . . Parts Attached 33 | 6 1 . . 4 22 Power 5 | 1 . . . 1 3 Engine 1 | 1 . . . . . Core 4 | . . . . 1 3 Reactor . | . . . . . . Propulsion 13 | 2 . . . 1 10 Treads 11 | 2 . . . 1 8 Leg 1 | . . . . . 1 Wheel . | . . . . . . Hover 1 | . . . . . 1 Flight . | . . . . . . Utility 9 | 1 . . . 1 7 Device 3 | . . . . 1 2 Storage 2 | 1 . . . . 1 Processor . | . . . . . . Hackware . | . . . . . . Protection 4 | . . . . . 4 Artifact . | . . . . . . Weapon 6 | 2 1 . . 1 2 Energy Gun 1 | 1 . . . . . Energy Cannon 1 | . . . . . 1 Ballistic Gun 3 | 1 1 . . 1 . Ballistic Cannon . | . . . . . . Launcher . | . . . . . . Special Weapon . | . . . . . . Impact Weapon . | . . . . . . Slashing Weapon 1 | . . . . . 1 Piercing Weapon . | . . . . . . Special Melee Weapon . | . . . . . . Unidentified Prototypes 1 | . . . . . 1 Parts Lost 10 | . . . . . 10 Power 2 | . . . . . 2 Propulsion 4 | . . . . . 4 Utility 3 | . . . . . 3 Weapon 1 | . . . . . 1 Highest Loss Streak 3 | . . . . . 3 To Critical Strikes . | . . . . . . Average Slot Usage (%) 87 | . 85 85 85 99 84 Engine 4 | . 14 14 14 . . Core 6 | . . . . 13 8 Treads 28 | . 28 28 28 28 29 Device 7 | . . . . 13 11 Storage 12 | . 14 14 14 14 10 Protection 4 | . . . . . 9 Ballistic Gun 17 | . 20 28 28 28 6 Slashing Weapon 3 | . . . . . 7 Naked Turns . | . . . . . . Heaviest Build 28 | 11 11 10 10 13 28 Greatest Support 83 | 40 40 40 40 43 83 Greatest Overweight (x) . | . . . . . . Average Overweight (x) . | . . . . . . Largest Inventory Capacity 10 | 8 8 8 8 8 10 Average Capacity 8 | 6 8 8 8 8 9 Most Carried 10 | 3 5 3 4 8 10 Average Carried 6 | 2 3 3 3 7 8 Final Capacity 10 | 8 8 8 8 8 10 Final Carried 10 | 3 3 3 4 8 10 Class Distribution -------------------- 65% | Mutant 34% | Scavenger-Mutant Dominant Class ---------------- Mutant | -10/Materials Mutant | -10/Mines Mutant | -10/Exiles Mutant | -9/Mines Scavenger-Mutant | -8/Materials Resources | -11 -10 -10 -10 -9 -8 ----------- Run | Yrd Mat Min Exi Min Mat Matter Collected 568 | 260 10 . . 96 202 Remotely . | . . . . . . Salvage Created 1730 | . 45 . . 308 1377 Parts 103 | . 6 . . 17 80 Haulers Intercepted 3 | . . . . . 3 Recyclers Shooed . | . . . . . . Parts Field Recycled . | . . . . . . Retrieved Matter . | . . . . . . Parts Self-Destructed . | . . . . . . Prevented . | . . . . . . Kills | -11 -10 -10 -10 -9 -8 ------- Run | Yrd Mat Min Exi Min Mat Combat Hostiles Destroyed 37 | . 3 . . 8 26 Melee 26 | . . . . . 26 Guns 11 | . 3 . . 8 . Classes Destroyed 9 | . 1 . . 2 6 Worker 5 | . . . . . 5 Builder 1 | . . . . . 1 Hauler 3 | . . . . . 3 Recycler 4 | . . . . 1 3 Swarmer 17 | . 3 . . 4 10 Grunt 16 | . . . . 4 12 Brawler 1 | . . . . . 1 Duelist 1 | . . . . . 1 Sentry 2 | . . . . . 2 Best Kill Streak 9 | . 3 . . 4 9 Combat Bots Only 6 | . 3 . . 4 6 Max Kills in Single Turn 2 | . 2 . . 1 1 Gunslinging 1 | . 1 . . . . Exploded . | . . . . . . Melee 1 | . . . . . 1 Uniques/NPCs Destroyed . | . . . . . . Combat | -11 -10 -10 -10 -9 -8 -------- Run | Yrd Mat Min Exi Min Mat Hostile Shots Fired 192 | . 8 . . 59 125 Missed 42 | . 5 . . 8 29 Damage Taken 1722 | . 25 . . 483 1214 Core 178 | . 10 . . 72 96 Absorbed by Shields . | . . . . . . Core Remaining (%) 83 | 100 . . . 67 . Volleys Fired 35 | . 5 . . 28 2 Largest 2 | . 2 . . 2 2 Hottest 83 | . 70 . . 40 83 Shots Fired 69 | . 10 . . 56 3 Gun 68 | . 10 . . 56 2 Cannon 1 | . . . . . 1 Launcher . | . . . . . . Special . | . . . . . . Kinetic 63 | . 5 . . 56 2 Thermal 5 | . 5 . . . . Explosive . | . . . . . . Electromagnetic 1 | . . . . . 1 Robot Hit Streak 12 | . 4 . . 12 1 Robot Miss Streak 4 | . 2 . . 4 2 Penetration Max . | . . . . . . Secondary Targets 3 | . 1 . . 2 . Max Gunslinging Chain 1 | . 1 . . 1 . Shots Hit Robots 123 | . 6 . . 40 77 Core Hits 54 | . 4 . . 20 30 Critical Kills . | . . . . . . Critical Parts Destroyed . | . . . . . . Critical Strikes 4 | . . . . . 4 Sever 4 | . . . . . 4 Melee Attacks 86 | . . . . . 86 Impact . | . . . . . . Slashing 86 | . . . . . 86 Piercing . | . . . . . . Sneak Attacks 15 | . . . . . 15 Combat Hostiles 1 | . . . . . 1 Follow-up Attacks . | . . . . . . Damage Inflicted 4665 | . 63 . . 351 4251 Guns 415 | . 59 . . 350 6 Cannons . | . . . . . . Explosions . | . . . . . . Melee 4245 | . . . . . 4245 Ramming 5 | . 4 . . 1 . Kinetic 377 | . 21 . . 350 6 Thermal 38 | . 38 . . . . Explosive . | . . . . . . Electromagnetic . | . . . . . . Impact . | . . . . . . Slashing 4245 | . . . . . 4245 Piercing . | . . . . . . Highest Corruption . | . . . . . . Average Corruption . | . . . . . . Corruption Purged . | . . . . . . Corruption Blocked . | . . . . . . Overload Shots . | . . . . . . Overflow Damage 645 | . . . . . 645 Projectiles . | . . . . . . Explosions . | . . . . . . Melee 645 | . . . . . 645 Knockbacks . | . . . . . . Impact . | . . . . . . Kinetic . | . . . . . . Secondary . | . . . . . . Self-Inflicted Damage . | . . . . . . Shots . | . . . . . . Rammed 2 | . 2 . . . . Targets Rammed 3 | . 2 . . 1 . Kicked . | . . . . . . Crushed 1 | . . . . 1 . Highest Temperature 90 | . 90 . . 43 10 Average Temperature 33 | . 44 . . 25 7 Received Heat Transfer 564 | . . . . 141 423 Siege Activations . | . . . . . . Robots Corrupted . | . . . . . . Combat Hostiles . | . . . . . . Parts Fried . | . . . . . . Impact Corruptions . | . . . . . . Robots Melted . | . . . . . . Combat Hostiles . | . . . . . . Parts Melted 1 | . . . . . 1 Heat Transferred 111 | . 111 . . . . Parts Sabotaged . | . . . . . . Parts Stolen . | . . . . . . Parts Stripped . | . . . . . . Power Chain Reactions . | . . . . . . Alert | -11 -10 -10 -10 -9 -8 ------- Run | Yrd Mat Min Exi Min Mat Peak Influence 509 | . 70 27 . 210 509 Initial 27 | . . 27 . . 3 Average 142 | . 38 27 . 113 192 Maximum Alert Level 2 | . . . . 1 2 Low Security (%) 72 | 100 100 100 . 79 60 Level 1 17 | . . . . 20 22 Level 2 10 | . . . . . 17 Level 3 . | . . . . . . Level 4 . | . . . . . . Level 5 . | . . . . . . High Security . | . . . . . . Max Security . | . . . . . . Squads Dispatched 4 | . 1 . . . 3 Investigation 2 | . 1 . . . 1 Extermination . | . . . . . . Reinforcement 1 | . . . . . 1 Assault . | . . . . . . Garrison 1 | . . . . . 1 Intercept . | . . . . . . Searches Triggered . | . . . . . . Construction Impeded . | . . . . . . Haulers Reinforced . | . . . . . . Active Scanning Responses . | . . . . . . Cargo Convoy Interrupts . | . . . . . . Stealth | -11 -10 -10 -10 -9 -8 --------- Run | Yrd Mat Min Exi Min Mat Distress Signals 6 | . 1 . . . 5 Communications Jammed . | . . . . . . Distress Signals . | . . . . . . Times Spotted 51 | . 4 . . 8 39 Peak Tracking Total 6 | . 2 . . 4 6 Tactical Retreats 2 | . . . . . 2 Traps | -11 -10 -10 -10 -9 -8 ------- Run | Yrd Mat Min Exi Min Mat Traps Triggered 1 | . . . . . 1 Indirectly . | . . . . . . Trap Hack Attempts . | . . . . . . Triggered . | . . . . . . Disarmed . | . . . . . . Reprogrammed . | . . . . . . Reused . | . . . . . . Traps Extracted . | . . . . . . Installed . | . . . . . . Triggered . | . . . . . . Machines | -11 -10 -10 -10 -9 -8 ---------- Run | Yrd Mat Min Exi Min Mat Machines Disabled . | . . . . . . Max in Single Turn . | . . . . . . Machines Repaired . | . . . . . . Machines Dismantled . | . . . . . . Machines Sabotaged . | . . . . . . Overloaded Fab Kills . | . . . . . . Hacking | -11 -10 -10 -10 -9 -8 --------- Run | Yrd Mat Min Exi Min Mat Machines Accessed 5 | . . . 1 . 4 Terminals 2 | . . . . . 2 Fabricators . | . . . . . . Repair Stations . | . . . . . . Recycling Units 1 | . . . . . 1 Scanalyzers 1 | . . . . . 1 Garrison Access . | . . . . . . Total Hacks 11 | . . . 1 . 10 Successful 6 | . . . 1 . 5 Failed 4 | . . . . . 4 Catastrophic . | . . . . . . Database Lockouts 1 | . . . . . 1 Manual 9 | . . . 1 . 8 Terminals 7 | . . . . . 7 Fabricators . | . . . . . . Repair Stations . | . . . . . . Recycling Units 1 | . . . . . 1 Scanalyzers 2 | . . . . . 2 Garrison Access . | . . . . . . Terminal Hacks 2 | . . . 1 . 1 Robot Analysis 1 | . . . . . 1 Derelict Proto ID Bank 1 | . . . 1 . . Fabricator Hacks . | . . . . . . Repair Station Hacks . | . . . . . . Recycling Unit Hacks 1 | . . . . . 1 Report Inventory 1 | . . . . . 1 Scanalyzer 2 | . . . . . 2 Insert Component 1 | . . . . . 1 Analyze 1 | . . . . . 1 Garrison Access Hacks . | . . . . . . Unauthorized Hacks 1 | . . . . . 1 Terminals 1 | . . . . . 1 Botnet 1 | . . . . . 1 Fabricators . | . . . . . . Repair Stations . | . . . . . . Recycling Units . | . . . . . . Scanalyzers . | . . . . . . Garrison Access . | . . . . . . Data Cores Recovered . | . . . . . . Used . | . . . . . . Hacking Detections 2 | . . . . . 2 Full Trace Events 1 | . . . . . 1 Feedback Events . | . . . . . . Feedback Blocked . | . . . . . . Robot Schematics Acquired . | . . . . . . Robots Built . | . . . . . . Authchips . | . . . . . . Time . | . . . . . . Total Robot Build Rating . | . . . . . . Part Schematics Acquired 1 | . . . . . 1 Parts Built . | . . . . . . Authchips . | . . . . . . Time . | . . . . . . Total Part Build Rating . | . . . . . . Parts Repaired . | . . . . . . Time . | . . . . . . Parts Recycled . | . . . . . . Recycled Matter . | . . . . . . Retrieved Matter . | . . . . . . Retrieved Components . | . . . . . . Parts Scanalyzed 1 | . . . . . 1 Part Schematics Acquired 1 | . . . . . 1 Parts Damaged . | . . . . . . Bothacking | -11 -10 -10 -10 -9 -8 ------------ Run | Yrd Mat Min Exi Min Mat Used RIF Installer . | . . . . . . Robots Hacked . | . . . . . . Non-combat . | . . . . . . Combat . | . . . . . . Robot Hacks Applied . | . . . . . . Relay Couplers Released . | . . . . . . Fabnet Peak Effective % . | . . . . . . Robots Rewired . | . . . . . . Allies Hacked . | . . . . . . Hacks Repelled . | . . . . . . Allies | -11 -10 -10 -10 -9 -8 -------- Run | Yrd Mat Min Exi Min Mat Total Allies . | . . . . . . Largest Group . | . . . . . . Highest-Rated Group . | . . . . . . Highest-Rated Ally . | . . . . . . Total Orders . | . . . . . . Ally Attacks . | . . . . . . Total Damage . | . . . . . . Kills . | . . . . . . Allies Corrupted . | . . . . . . Allies Melted . | . . . . . . Intel | -11 -10 -10 -10 -9 -8 ------- Run | Yrd Mat Min Exi Min Mat Robot Analysis Total 1 | . . . . . 1 Derelict Logs Recovered . | . . . . . . Drone Launches . | . . . . . . Drone Recoveries . | . . . . . . Exploration | -11 -10 -10 -10 -9 -8 ------------- Run | Yrd Mat Min Exi Min Mat Turns Passed 2521 | 84 214 85 533 478 1127 Spaces Moved 1277 | 52 119 52 333 239 482 Core 9 | 9 . . . . . Treads 1268 | 43 119 52 333 239 482 Legs . | . . . . . . Wheels . | . . . . . . Hover . | . . . . . . Flight . | . . . . . . Fastest Speed 50 | 50 160 160 160 160 160 Average Speed 159 | 140 160 160 160 160 160 Slowest Speed 160 | 160 160 160 160 160 160 Overloaded Moves . | . . . . . . Propulsion Burnouts . | . . . . . . Robots Hopped . | . . . . . . Cave-ins Triggered . | . . . . . . Exploration Rate (%) 41 | 4 27 25 80 65 47 Regions Visited 5 Branch Regions 3 Pre-discovered Areas 1 | . . . . 1 . Known Exits Taken . | . . . . . . Unknown Exits Taken 5 | 1 1 1 1 1 . Scrap Searched 1 | . . . . 1 . Spaces Dug . | . . . . . . Terrain Destroyed . | . . . . . . Melee . | . . . . . . Projectile . | . . . . . . AOE . | . . . . . . Terrain Rammed . | . . . . . . Walls Destroyed . | . . . . . . Machines Disabled . | . . . . . . Actions | -11 -10 -10 -10 -9 -8 --------- Run | Yrd Mat Min Exi Min Mat Total 1619 | 60 133 54 333 290 749 Wait 150 | . 3 3 . 12 132 Move 1272 | 51 118 51 332 238 482 Hop . | . . . . . . Pick Up 23 | 3 2 . 1 4 13 Fast Attach 16 | 6 . . . 1 9 Attach 8 | . . . . . 8 Detach 2 | . . . . . 2 Swap 9 | . 1 . . 3 5 Drop 15 | . 2 . . 3 10 Fire 35 | . 5 . . 28 2 Melee 86 | . . . . . 86 Ram . | . . . . . . Kick . | . . . . . . Crush 3 | . 2 . . 1 . Escape Stasis . | . . . . . . Rewire . | . . . . . . Trap . | . . . . . . Miscellaneous . | . . . . . . Route ------- -11/Scrapyard -10/Materials -10/Mines -10/Exiles -9/Mines -8/Materials History --------- Turn | Location | Event 7 | -11/Scrapyard | Discovered new exit (range 16) 85 | -11/Scrapyard | Entered Materials 159 | -10/Materials | Discovered new exit (range 13) 219 | -10/Materials | Met 8R-AWN 299 | -10/Materials | Entered Mines 301 | -10/Mines | Followed 8R-AWN into the Mines 308 | -10/Mines | Build established: Mutant 378 | -10/Mines | Discovered new exit (range 5) 384 | -10/Mines | Entered Exiles 421 | -10/Exiles | Welcomed by 8R-AWN 448 | -10/Exiles | Met EX-HEX 496 | -10/Exiles | Met EX-BIN 516 | -10/Exiles | Aligned with FarCom system 517 | -10/Exiles | Given EX-Vault access code 557 | -10/Exiles | Opened EX-Vault 568 | -10/Exiles | Found Longsword +1 605 | -10/Exiles | Warned to stay clear of 0b10 Research branches 702 | -10/Exiles | Met EX-DEC 734 | -10/Exiles | Visited The Gauntlet 901 | -10/Exiles | Discovered new exit (range 12) 917 | -10/Exiles | Left Exiles lab with Longsword +1 917 | -10/Exiles | Entered Mines 933 | -9/Mines | Met a Derelict bent on vengeance 1153 | -9/Mines | Learned location of Storage (-8) 1387 | -9/Mines | Discovered new exit (range 6) 1395 | -9/Mines | Entered Materials 1395 | -8/Materials | Evolved 4 slots: Propulsion x2, Utility x2 1532 | -8/Materials | Central database locked down 1667 | -8/Materials | Garrison activated, responded to threat 2133 | -8/Materials | Build established: Scavenger-Mutant 2247 | -8/Materials | Lost 3 parts (2n1w) 2522 | -8/Materials | Self-destructed Last Messages --------------- 02366_ B-36 Bruiser destroyed. 02370_ Acquired Lgt. Treads. 02371_ Critical hit (Burn: +37). 02373_ Acquired Lgt. Armor Plating. 02374_ Imp. Heat Sink destroyed. 02374_ G-47 Trooper destroyed. 02376_ Acquired 25 matter. 02387_ G-47 Trooper destroyed. 02395_ Dropped Lgt. Assault Rifle. 02395_ Acquired Hvy. Assault Rifle. 02405_ R-06 Scavenger collects Beam Rifle. 02409_ Acquired 10 matter. 02410_ R-06 Scavenger collects Hammer. 02412_ Acquired Lgt. Treads. 02423_ Dropped Lgt. Assault Rifle. 02423_ Acquired Lgt. Nuclear Core. 02437_ Sneak attack on A-02 Transporter. 02518_ M-13 Machinist repairs Lgt. Treads. 02518_ Sneak attack on M-13 Machinist. 02518_ Destroyed Wheel. Map ----- +----------------------------------------------------+ | ????????????????????????????????????? #????# | | ????????????????????????????????????? #????# | | ????????????????????????????????????? #????#### | | ?????????????????????????????????????# #???????? | | ?????????????????????????????????????# #???????? | | ???????????????????????##########????# #???????? | | ???????????????????????# ????? #???????? | | ???????????????????????# ######## #???????? | | ???????????????????????# # !# #???????? | | ???????????????????????# / # #???????? | | ???????????????????????# ###### + +???????? | | ???????????????????????# #????# # #???????? | | ???????????????????????# #????#!/ # #???????? | | ???????????????????????# #????#!/ !# ######### | | ???????????????????????# #????######## | | ???????????????????????# #???????????# | | ???????????????????????# #???????????# | | ??????????????#????????# #???????????# #######+# | | ??????????????# ??????# #???????????# ## [% | | ??????????????# ????# #???????????# ## "" | | ??????????????# ??# #########+### ##! """" | | ??????????????# # ## """"" | | ??????????????# + ## """"" | | ??????????????# # == ## """% | | ??????????????# ??####+######+######## [ | | ??????????????# ?????#@=[*= #??????????# | | ??????????????# ???????#=[""" #??????????# | | ??????????????#?????????#*!""" #??????????######## | | ????????????????????????# [""" #?????????????????? | | ????????????????????????# """ #?????????????????? | | ????????????????????????# #?????????????????? | | ????????????????????????# ] #?????????????????? | | ?????????????????????????#######?????????????????? | | | | | | | | | | | | | | | | | | | | | | | | | | | | | | | | | | | +----------------------------------------------------+ Best States ------------- Heat Dissipation 59 Energy Generation 14 Energy Capacity 160 Matter Stores 300 Matter Capacity 300 Sight Range 16 Terrain Scan Density 10 Armor Coverage 300 Evasion (%) 50 Recoil Reduction 4 Item Schematics ----------------- Imp. Light Armor Plating | -8/Materials | Scanalyzed Robot Schematics ------------------ None Fabricated ------------ Nothing Alien Tech Used ----------------- None Achievements -------------- None Challenges ------------ None Game ------ Seed UtilityParticleBlade Manual? 0 Play Time 00:19:51 Cumulative 62.1 hours Start 2024.06.26 @ 02:39:12 End 2024.06.26 @ 02:57:24 Sessions 1 Manual Loads 0 Difficulty Rogue Special Mode None Game No. 56 Rogue 49 Adventurer 7 Explorer 0 Win Type - Total 2 Types 2/0/0/0/0/0/0/0/0 Lore% 19 Gallery% 36 Achievement% 37 Wizard Run 0 Options --------- Layout 0 ASCII 0 Keyboard 0 Movement Mouse Keybinds 0 Fullscreen 2 Font 24/Smallcaps Map View 113x50 Zoom Use 0% Tactical HUD 1 Map Filters NONE Filters NONE Steam 1 RUN: 83b26881-120b-4d6e-8128-119e906cba1f